[Event "Aarhusmesterskabet 2020"]
[Site "Aarhus"]
[Date "2020.02.14"]
[Round "3.6"]
[White "Klitgaard, Thomas"]
[Black "Oehlerich, Per"]
[Result "1-0"]
[ECO "E42"]
[WhiteElo "2187"]
[BlackElo "1935"]
[Annotator "RC"]
[PlyCount "67"]
[EventDate "2020.02.14"]
[EventType "swiss"]
[EventCountry "DEN"]
[SourceTitle "playchess.com"]
[Source "ChessBase"]
[SourceQuality "1"]
[TimeControl "5400+30"]

1. d4 {[%emt 1:10:22]} e6 {[%emt 1:10:43]} 2. c4 {[%emt 0:00:34]} Bb4+ {[%emt 0:01:08]} 3. Nc3 {[%emt 0:00:40]} c5 {[%emt 0:01:27]} 4. e3 {[%emt 0:00:44]} Nf6 {[%emt 0:00:40]} 5. Nge2 {[%emt 0:00:32]} O-O {[%emt 0:01:14]} 6. a3 {[%emt 0:00:31]} cxd4 {[%emt 0:00:54]} 7. axb4 {[%emt 0:00:32]} dxc3 {[%emt 0:00:28]} 8. Nxc3 {[%emt 0:00:28]} d5 {[%emt 0:01:16]} 9. cxd5 {[%emt 0:00:33]} Nxd5 {[%emt 0:00:38]} 10. Nxd5 {[%emt 0:00:29]} Qxd5 {[%emt 0:00:43]} 11. Qxd5 {[%emt 0:00:28]} exd5 {[%emt 0:00:27]} 12. b5 {[%emt 0:00:45]} Re8 {[%emt 0:01:54]} 13. Be2 {[%emt 0:00:47]} Nd7 {[%emt 0:01:27]} 14. Bd2 {[%emt 0:00:37]} Nc5 {[%emt 0:02:06]} 15. Bc3 {[%emt 0:01:33]} Bf5 {[%emt 0:01:01]} 16. O-O {[%emt 0:01:26]} a6 {[%emt 0:01:50]} 17. Rfd1 {[%emt 0:02:07]} Bc2 {[%emt 0:04:23]} 18. Rxd5 {[%emt 0:02:17]} Nb3 {[%emt 0:00:26]} 19. Ra3 {[%emt 0:01:13]} axb5 {[%emt 0:00:26]} 20. Rxa8 {[%emt 0:01:05]} Rxa8 {[%emt 0:00:27]} 21. h3 {[%emt 0:00:31]} h6 {[%emt 0:01:37]} 22. Rxb5 {[%emt 0:00:39]} Ra1+ {[%emt 0:01:00]} 23. Kh2 {[%emt 0:00:28]} Nc1 {[%emt 0:00:54]} 24. Bc4 {[%emt 0:01:59]} Bd3 {[%emt 0:01:00]} 25. Bxd3 {[%emt 0:00:27]} Nxd3 {[%emt 0:00:27]} 26. Kg3 {[%emt 0:00:28]} Rf1 {[%emt 0:01:53]} 27. f3 {[%emt 0:00:41]} Nc1 {[%emt 0:00:33]} 28. Rxb7 {[%emt 0:01:39]} Ne2+ {[%emt 0:00:29]} 29. Kh2 {[%emt 0:01:11]} h5 {[%emt 0:00:45]} 30. h4 {[%emt 0:00:28]} g5 {[%emt 0:00:45]} 31. Rb8+ {[%emt 0:00:34]} Kh7 {[%emt 0:00:26]} 32. Rh8+ {[%emt 0:00:28]} Kg6 {[%emt 0:00:26]} 33. Rg8+ {[%emt 0:00:25]} Kf5 {[%emt 0:00:31]} 34. Rxg5+ {[%emt 0:00:29]} 1-0

[Event "Aarhusmesterskabet 2020"]
[Site "Aarhus"]
[Date "2020.02.15"]
[Round "5.1"]
[White "Schmidt, Tommy B."]
[Black "Danielsen, Henrik"]
[Result "0-1"]
[ECO "A80"]
[WhiteElo "2166"]
[BlackElo "2511"]
[Annotator "ChessBase"]
[PlyCount "142"]
[EventDate "2020.02.14"]
[EventType "swiss"]
[EventCountry "DEN"]
[SourceTitle "playchess.com"]
[Source "ChessBase"]
[SourceQuality "1"]
[TimeControl "40/5400+30:1800+30"]

1. d4 {[%emt 0:04:58]} f5 {[%emt 0:00:12]} 2. Nc3 {[%emt 0:00:08]} Nf6 {[%emt 0:01:36]} 3. Bg5 {[%emt 0:00:05]} d5 {[%emt 0:01:18]} 4. Bxf6 {[%emt 0:00:05]} exf6 {[%emt 0:00:19]} 5. e3 {[%emt 0:00:07]} Be6 {[%emt 0:00:45]} 6. Bd3 {[%emt 0:00:14]} Nc6 {[%emt 0:00:45]} 7. Qf3 {[%emt 0:03:22]} Qd7 {[%emt 0:00:39]} 8. Nge2 {[%emt 0:03:05]} Nb4 {[%emt 0:03:46]} 9. Nf4 {[%emt 0:02:51]} Bf7 {[%emt 0:02:10]} 10. O-O-O {[%emt 0:08:12]} Nxd3+ {[%emt 0:05:53]} 11. cxd3 {[%emt 0:03:17]} O-O-O {[%emt 0:00:29]} 12. h3 {[%emt 0:03:13]} h5 {[%emt 0:00:16]} 13. h4 {[%emt 0:00:44]} g5 {[%emt 0:05:21]} 14. Nfe2 {[%emt 0:05:56]} Bd6 {[%emt 0:03:11]} 15. g3 {[%emt 0:01:05]} c6 {[%emt 0:05:25]} 16. Kb1 {[%emt 0:01:31]} Kb8 {[%emt 0:00:24]} 17. Rc1 {[%emt 0:01:55]} Bg6 {[%emt 0:00:17]} 18. Rcd1 {[%emt 0:00:52]} Rde8 {[%emt 0:01:18]} 19. Rd2 {[%emt 0:02:53]} Rh7 {[%emt 0:02:24]} 20. Rc1 {[%emt 0:02:35]} Qd8 {[%emt 0:04:42]} 21. Ka1 {[%emt 0:01:34]} Rhe7 {[%emt 0:04:14]} 22. Rdd1 {[%emt 0:02:10]} Qa5 {[%emt 0:00:54]} 23. Rd2 {[%emt 0:01:35]} Qa6 {[%emt 0:01:45]} 24. Rcd1 {[%emt 0:00:17]} b6 {[%emt 0:12:13]} 25. Kb1 {[%emt 0:00:44]} b5 {[%emt 0:01:12]} 26. b3 {[%emt 0:06:51]} Qa5 {[%emt 0:02:28]} 27. Rc2 {[%emt 0:02:00]} Ba3 {[%emt 0:02:23]} 28. Ka1 {[%emt 0:01:35]} Re6 {[%emt 0:00:57]} 29. Nb1 {[%emt 0:02:53]} Bf8 {[%emt 0:00:16]} 30. Nbc3 {[%emt 0:00:18]} a6 {[%emt 0:00:20]} 31. Kb1 {[%emt 0:01:12]} Qb6 {[%emt 0:02:45]} 32. Ka1 {[%emt 0:00:47]} Rd8 {[%emt 0:02:16]} 33. Qh1 {[%emt 0:02:03]} Bd6 {[%emt 0:00:33]} 34. Qf3 {[%emt 0:00:08]} Ba3 {[%emt 0:00:29]} 35. Qh1 Rd7 {[%emt 0:00:19]} 36. Qf3 {[%emt 0:01:13]} Ka7 {[%emt 0:00:14]} 37. Qh1 {[%emt 0:01:26]} Rb7 {[%emt 0:00:13]} 38. Qg2 {[%emt 0:01:09]} a5 {[%emt 0:00:26]} 39. Nb1 {[%emt 0:02:52]} Be7 {[%emt 0:00:11]} 40. a3 {[%emt 0:05:17]} b4 {[%emt 0:01:24]} 41. a4 {[%emt 0:30:12]} Qa6 {[%emt 0:30:06]} 42. Nc1 {[%emt 0:02:39]} Rd7 {[%emt 0:00:46]} 43. Ka2 {[%emt 0:00:17]} Bf8 {[%emt 0:00:21]} 44. Rcd2 {[%emt 0:04:44]} Bd6 {[%emt 0:00:26]} 45. Ne2 {[%emt 0:00:10]} Rc7 {[%emt 0:00:34]} 46. Qf3 {[%emt 0:00:16]} Re8 {[%emt 0:00:30]} 47. Kb2 {[%emt 0:00:23]} Rec8 {[%emt 0:00:15]} 48. Qg2 {[%emt 0:00:21]} Qb7 {[%emt 0:01:27]} 49. Rc1 {[%emt 0:01:53]} Re8 {[%emt 0:01:03]} 50. Qf3 {[%emt 0:01:56]} Qc8 {[%emt 0:00:08]} 51. Qg2 {[%emt 0:00:49]} Qd7 {[%emt 0:00:05]} 52. Qf3 {[%emt 0:01:13]} Rec8 {[%emt 0:00:01]} 53. Qg2 {[%emt 0:00:25]} Qh7 {[%emt 0:00:34]} 54. Rcd1 {[%emt 0:00:12]} Bf7 {[%emt 0:01:07]} 55. Qf3 {[%emt 0:01:47]} Qg6 {[%emt 0:00:55]} 56. Rc1 {[%emt 0:00:15]} Be6 {[%emt 0:01:31]} 57. Qh1 {[%emt 0:03:09]} f4 {[%emt 0:00:49]} 58. gxf4 gxf4 {[%emt 0:01:03]} 59. e4 {[%emt 0:02:30]} dxe4 {[%emt 0:01:04]} 60. dxe4 {[%emt 0:00:24]} c5 {[%emt 0:01:22]} 61. d5 {[%emt 0:05:25]} Bd7 {[%emt 0:00:18]} 62. Rdc2 {[%emt 0:00:18]} Be5+ {[%emt 0:02:36]} 63. Ka2 {[%emt 0:00:07]} c4 {[%emt 0:00:30]} 64. Rxc4 {[%emt 0:00:43]} Rxc4 {[%emt 0:00:07]} 65. Rxc4 {[%emt 0:01:16]} Rxc4 {[%emt 0:00:03]} 66. bxc4 {[%emt 0:00:08]} Bxa4 {[%emt 0:02:19]} 67. Nd2 {[%emt 0:00:39]} Bc2 {[%emt 0:00:21]} 68. f3 {[%emt 0:00:59]} Qe8 {[%emt 0:00:09]} 69. Qg1+ {[%emt 0:00:30]} Ka6 {[%emt 0:01:06]} 70. Nd4 {[%emt 0:00:41]} Qa4+ {[%emt 0:00:20]} 71. Kb2 {[%emt 0:00:20]} Bd3 {[%emt 0:00:44]} 0-1

[Event "Aarhusmesterskabet 2020"]
[Site "Aarhus"]
[Date "2020.02.15"]
[Round "5.2"]
[White "Ochsner, Bjorn Moller"]
[Black "Fries-Nielsen, Jens Ove"]
[Result "1-0"]
[ECO "B06"]
[WhiteElo "2472"]
[BlackElo "2373"]
[Annotator "ChessBase"]
[PlyCount "65"]
[EventDate "2020.02.14"]
[EventType "swiss"]
[EventCountry "DEN"]
[SourceTitle "playchess.com"]
[Source "ChessBase"]
[SourceQuality "1"]
[TimeControl "40/5400+30:1800+30"]

1. e4 {[%emt 0:00:00]} g6 {[%emt 0:04:15]} 2. d4 {[%emt 0:00:00]} Bg7 {[%emt 0:00:51]} 3. Nc3 {[%emt 0:00:05]} Nc6 {[%emt 0:00:53]} 4. Be3 {[%emt 0:00:51]} d6 {[%emt 0:01:24]} 5. Qd2 {[%emt 0:00:39]} a6 {[%emt 0:00:28]} 6. f4 {[%emt 0:18:12]} b5 {[%emt 0:04:34]} 7. Nf3 {[%emt 0:04:21]} Bd7 {[%emt 0:23:19]} 8. a3 {[%emt 0:05:43]} e6 {[%emt 0:02:13]} 9. h3 {[%emt 0:03:40]} Nf6 {[%emt 0:02:01]} 10. g4 {[%emt 0:06:18]} Ne7 {[%emt 0:04:36]} 11. Bd3 {[%emt 0:16:11]} Bc6 {[%emt 0:02:38]} 12. Rf1 {[%emt 0:01:12]} Qc8 {[%emt 0:04:57]} 13. f5 {[%emt 0:03:15]} exf5 {[%emt 0:02:01]} 14. gxf5 {[%emt 0:01:58]} gxf5 {[%emt 0:05:33]} 15. e5 {[%emt 0:05:24]} Nfd5 {[%emt 0:06:57]} 16. Bg5 {[%emt 0:04:10]} h6 {[%emt 0:09:35]} 17. Bxe7 {[%emt 0:07:00]} Nxe7 {[%emt 0:00:47]} 18. Nh4 {[%emt 0:03:24]} dxe5 {[%emt 0:01:17]} 19. Nxf5 {[%emt 0:03:00]} Nxf5 {[%emt 0:00:50]} 20. Bxf5 {[%emt 0:00:29]} Qd8 {[%emt 0:01:04]} 21. d5 {[%emt 0:04:58]} Qh4+ {[%emt 0:01:07]} 22. Rf2 {[%emt 0:01:09]} Bb7 {[%emt 0:00:24]} 23. Qe2 {[%emt 0:06:59]} b4 {[%emt 0:05:38]} 24. axb4 {[%emt 0:01:18]} Qxb4 {[%emt 0:00:36]} 25. O-O-O {[%emt 0:01:00]} Rd8 {[%emt 0:02:08]} 26. Be4 {[%emt 0:00:58]} Rd6 {[%emt 0:00:38]} 27. Rdf1 {[%emt 0:00:29]} Rf8 {[%emt 0:09:01]} 28. Qh5 {[%emt 0:00:04]} Rd7 {[%emt 0:00:36]} 29. Rg2 {[%emt 0:01:03]} Bh8 {[%emt 0:00:28]} 30. Qxh6 {[%emt 0:00:30]} Rd6 {[%emt 0:01:14]} 31. Qh5 {[%emt 0:00:30]} Bf6 {[%emt 0:00:05]} 32. Rgf2 {[%emt 0:00:28]} Qb6 {[%emt 0:00:33]} 33. Rxf6 {[%emt 0:00:29]} 1-0

[Event "Aarhusmesterskabet 2020"]
[Site "Aarhus"]
[Date "2020.02.15"]
[Round "5.3"]
[White "Dumas, Charles"]
[Black "Hardlei, Johan"]
[Result "1-0"]
[ECO "B22"]
[WhiteElo "2289"]
[BlackElo "2128"]
[Annotator "ChessBase"]
[PlyCount "91"]
[EventDate "2020.02.14"]
[EventType "swiss"]
[EventCountry "DEN"]
[SourceTitle "playchess.com"]
[Source "ChessBase"]
[SourceQuality "1"]
[TimeControl "40/5400+30:1800+30"]

1. e4 {[%emt 0:00:00]} c5 {[%emt 0:09:20]} 2. c3 {[%emt 0:00:00]} g6 {[%emt 0:00:04]} 3. d4 {[%emt 0:00:00]} cxd4 {[%emt 0:00:04]} 4. cxd4 {[%emt 0:00:00]} d5 {[%emt 0:00:03]} 5. Nc3 {[%emt 0:00:18]} dxe4 {[%emt 0:02:20]} 6. Bc4 {[%emt 0:00:14]} Nf6 {[%emt 0:06:00]} 7. Qb3 {[%emt 0:01:21]} e6 {[%emt 0:03:04]} 8. d5 {[%emt 0:00:18]} Qb6 {[%emt 0:01:00]} 9. Qxb6 {[%emt 0:14:33]} axb6 {[%emt 0:00:46]} 10. dxe6 {[%emt 0:00:34]} Bxe6 {[%emt 0:00:52]} 11. Bxe6 {[%emt 0:00:13]} fxe6 {[%emt 0:00:02]} 12. Nge2 {[%emt 0:01:10]} Bb4 {[%emt 0:05:02]} 13. O-O {[%emt 0:02:55]} O-O {[%emt 0:03:49]} 14. a3 {[%emt 0:00:49]} Bxc3 {[%emt 0:13:19]} 15. Nxc3 {[%emt 0:00:05]} Nbd7 {[%emt 0:00:57]} 16. Bh6 {[%emt 0:01:35]} Rfc8 {[%emt 0:02:46]} 17. Rad1 {[%emt 0:12:30]} Ra5 {[%emt 0:11:29]} 18. Nxe4 {[%emt 0:06:41]} Rd5 {[%emt 0:04:15]} 19. Nc3 {[%emt 0:01:09]} Rxd1 {[%emt 0:01:45]} 20. Rxd1 {[%emt 0:00:07]} Kf7 {[%emt 0:04:52]} 21. h3 {[%emt 0:00:38]} Rc7 {[%emt 0:13:42]} 22. Bf4 {[%emt 0:02:35]} e5 {[%emt 0:01:49]} 23. Bg5 {[%emt 0:01:25]} Ke6 {[%emt 0:01:03]} 24. Rd3 {[%emt 0:01:48]} Nc5 {[%emt 0:04:51]} 25. Rd8 {[%emt 0:04:57]} Nfe4 {[%emt 0:01:25]} 26. Re8+ {[%emt 0:02:21]} Kf5 {[%emt 0:02:18]} 27. Bd8 {[%emt 0:01:19]} Rf7 {[%emt 0:05:04]} 28. Bxb6 {[%emt 0:08:37]} Nxc3 {[%emt 0:00:22]} 29. Bxc5 {[%emt 0:00:22]} Na4 {[%emt 0:00:24]} 30. Bd6 {[%emt 0:00:47]} Nxb2 {[%emt 0:00:33]} 31. Rxe5+ {[%emt 0:00:24]} Kf6 {[%emt 0:00:10]} 32. Re4 {[%emt 0:01:16]} Rd7 {[%emt 0:01:56]} 33. Bc5 {[%emt 0:05:00]} Nd3 {[%emt 0:00:24]} 34. Bd4+ {[%emt 0:00:24]} Kf7 {[%emt 0:00:22]} 35. Be3 {[%emt 0:00:15]} Nb2 {[%emt 0:00:41]} 36. Kf1 {[%emt 0:01:11]} Nd3 {[%emt 0:00:35]} 37. Ke2 {[%emt 0:00:25]} Nb2 {[%emt 0:00:29]} 38. Rb4 {[%emt 0:01:41]} Nd3 {[%emt 0:00:15]} 39. Rb5 {[%emt 0:01:53]} Ke6 {[%emt 0:00:34]} 40. f4 {[%emt 0:00:41]} Kf6 {[%emt 0:00:42]} 41. Rb3 {[%emt 0:31:42]} Nxf4+ {[%emt 0:30:21]} 42. Bxf4 {[%emt 0:00:06]} Kf5 {[%emt 0:00:14]} 43. Be3 {[%emt 0:00:32]} h5 {[%emt 0:00:22]} 44. Kf3 {[%emt 0:00:37]} Rg7 {[%emt 0:00:41]} 45. Rb5+ {[%emt 0:00:20]} Ke6 {[%emt 0:00:22]} 46. Ke4 {[%emt 0:00:34]} 1-0

[Event "Aarhusmesterskabet 2020"]
[Site "Aarhus"]
[Date "2020.02.15"]
[Round "5.4"]
[White "Hoiberg, Nina"]
[Black "Nielsen, Viktor Haarmark"]
[Result "1/2-1/2"]
[ECO "B49"]
[WhiteElo "2168"]
[BlackElo "2300"]
[Annotator "ChessBase"]
[PlyCount "66"]
[EventDate "2020.02.14"]
[EventType "swiss"]
[EventCountry "DEN"]
[SourceTitle "playchess.com"]
[Source "ChessBase"]
[SourceQuality "1"]
[TimeControl "40/5400+30:1800+30"]

1. e4 {[%emt 0:04:36]} c5 {[%emt 0:00:00]} 2. Nf3 {[%emt 0:00:40]} e6 {[%emt 0:00:00]} 3. d4 {[%emt 0:00:13]} cxd4 {[%emt 0:00:00]} 4. Nxd4 {[%emt 0:00:25]} Nc6 {[%emt 0:00:05]} 5. Nc3 {[%emt 0:00:50]} Qc7 {[%emt 0:00:07]} 6. Be3 {[%emt 0:01:25]} a6 {[%emt 0:00:07]} 7. Be2 {[%emt 0:01:19]} Nf6 {[%emt 0:00:07]} 8. f4 {[%emt 0:01:53]} Bb4 {[%emt 0:00:07]} 9. Qd3 {[%emt 0:03:42]} d5 {[%emt 0:03:12]} 10. e5 {[%emt 0:11:19]} Ne4 {[%emt 0:00:13]} 11. Nxc6 {[%emt 0:00:29]} Qxc6 {[%emt 0:04:10]} 12. Bd4 {[%emt 0:00:12]} Bd7 {[%emt 0:05:23]} 13. O-O {[%emt 0:04:10]} Bxc3 {[%emt 0:02:10]} 14. bxc3 {[%emt 0:00:10]} Rc8 {[%emt 0:00:17]} 15. Rab1 {[%emt 0:04:45]} b5 {[%emt 0:00:56]} 16. Rf3 {[%emt 0:00:34]} O-O {[%emt 0:13:17]} 17. Re3 {[%emt 0:12:35]} Rc7 {[%emt 0:09:19]} 18. Bf3 {[%emt 0:02:25]} Qc4 {[%emt 0:01:59]} 19. Bxe4 {[%emt 0:03:16]} dxe4 {[%emt 0:00:07]} 20. Qxc4 {[%emt 0:00:42]} Rxc4 {[%emt 0:00:10]} 21. Rxe4 {[%emt 0:04:12]} Rfc8 {[%emt 0:02:02]} 22. Rb4 {[%emt 0:16:58]} Rxb4 {[%emt 0:01:41]} 23. cxb4 {[%emt 0:00:05]} Rxc2 {[%emt 0:01:00]} 24. Re3 {[%emt 0:00:26]} Rd2 {[%emt 0:08:41]} 25. Bc3 {[%emt 0:00:59]} Rxa2 {[%emt 0:04:25]} 26. Rd3 {[%emt 0:00:58]} Be8 {[%emt 0:00:04]} 27. Rd8 {[%emt 0:04:06]} Kf8 {[%emt 0:00:06]} 28. Bd4 {[%emt 0:00:54]} Ke7 {[%emt 0:00:25]} 29. Rc8 {[%emt 0:07:21]} f6 {[%emt 0:03:42]} 30. Rc7+ {[%emt 0:03:07]} Bd7 {[%emt 0:00:38]} 31. Bc5+ {[%emt 0:02:02]} Ke8 {[%emt 0:01:02]} 32. Ra7 {[%emt 0:00:41]} fxe5 {[%emt 0:02:39]} 33. fxe5 {[%emt 0:00:26]} h6 {[%emt 0:01:29]} 1/2-1/2

[Event "Aarhusmesterskabet 2020"]
[Site "Aarhus"]
[Date "2020.02.15"]
[Round "5.6"]
[White "Holm, Filip"]
[Black "Rossen, Claus"]
[Result "1-0"]
[ECO "B00"]
[WhiteElo "1956"]
[BlackElo "2108"]
[Annotator "NA"]
[PlyCount "55"]
[EventDate "2020.02.14"]
[EventType "swiss"]
[EventCountry "DEN"]
[SourceTitle "playchess.com"]
[Source "ChessBase"]
[SourceQuality "1"]
[TimeControl "40/5400+30:1800+30"]

1. e4 {[%emt 0:00:00]} d6 {[%emt 0:00:00]} 2. d4 {[%emt 0:00:15]} Nf6 {[%emt 0:00:00]} 3. Bd3 {[%emt 0:00:24]} g6 {[%emt 0:00:00]} 4. c4 {[%emt 0:00:27]} Bg7 {[%emt 0:00:10]} 5. Nc3 {[%emt 0:00:25]} O-O {[%emt 0:00:08]} 6. Nge2 {[%emt 0:00:39]} e5 {[%emt 0:01:24]} 7. d5 {[%emt 0:00:59]} a5 {[%emt 0:01:14]} 8. Be3 {[%emt 0:03:43]} Na6 {[%emt 0:00:09]} 9. f3 {[%emt 0:03:04]} Nc5 {[%emt 0:01:15]} 10. O-O {[%emt 0:00:52]} Nfd7 {[%emt 0:01:00]} 11. Bc2 {[%emt 0:00:28]} f5 {[%emt 0:00:38]} 12. exf5 {[%emt 0:03:10]} gxf5 {[%emt 0:00:11]} 13. f4 {[%emt 0:02:48]} e4 {[%emt 0:05:50]} 14. Nd4 {[%emt 0:04:40]} Nf6 {[%emt 0:00:18]} 15. h3 {[%emt 0:01:28]} Qe8 {[%emt 0:03:00]} 16. Ncb5 {[%emt 0:07:18]} Na6 {[%emt 0:06:51]} 17. Qd2 {[%emt 0:07:11]} b6 {[%emt 0:03:23]} 18. a3 {[%emt 0:02:43]} Bd7 {[%emt 0:02:16]} 19. b4 {[%emt 0:06:13]} axb4 {[%emt 0:02:17]} 20. axb4 {[%emt 0:00:17]} Nxd5 {[%emt 0:00:06]} 21. Nxd6 {[%emt 0:00:21]} Qg6 {[%emt 0:08:43]} 22. N6xf5 {[%emt 0:14:51]} Nxe3 {[%emt 0:02:55]} 23. Ne7+ {[%emt 0:01:01]} Kf7 {[%emt 0:01:27]} 24. Nxg6 {[%emt 0:00:14]} Nxf1 {[%emt 0:00:07]} 25. Rxf1 {[%emt 0:00:25]} hxg6 {[%emt 0:00:05]} 26. Bxe4 {[%emt 0:00:23]} Nxb4 {[%emt 0:10:43]} 27. Bxa8 {[%emt 0:02:45]} Rxa8 {[%emt 0:00:07]} 28. Nf3 {[%emt 0:00:22]} 1-0

[Event "Aarhusmesterskabet 2020"]
[Site "Aarhus"]
[Date "2020.02.15"]
[Round "5.8"]
[White "Marthedal, Anton Mehmet Yildiz"]
[Black "Zander, Emil"]
[Result "1-0"]
[ECO "A45"]
[WhiteElo "1920"]
[BlackElo "1462"]
[Annotator "NA"]
[PlyCount "59"]
[EventDate "2020.02.14"]
[EventType "swiss"]
[EventCountry "DEN"]
[SourceTitle "playchess.com"]
[Source "ChessBase"]
[SourceQuality "1"]
[TimeControl "40/5400+30:1800+30"]

1. d4 {[%emt 0:00:00]} Nf6 {[%emt 0:00:00]} 2. Bf4 {[%emt 0:00:03]} g6 {[%emt 0:00:51]} 3. Nd2 {[%emt 0:00:46]} Bg7 {[%emt 0:00:54]} 4. e4 {[%emt 0:00:35]} d6 {[%emt 0:00:14]} 5. Ngf3 {[%emt 0:00:55]} Bg4 {[%emt 0:00:52]} 6. Bc4 {[%emt 0:01:32]} Nbd7 {[%emt 0:00:18]} 7. c3 {[%emt 0:01:13]} e5 {[%emt 0:00:13]} 8. Bg5 {[%emt 0:01:41]} O-O {[%emt 0:03:56]} 9. O-O {[%emt 0:00:20]} Nb6 {[%emt 0:01:43]} 10. Bb3 {[%emt 0:01:37]} Re8 {[%emt 0:02:27]} 11. h3 {[%emt 0:01:34]} Bxf3 {[%emt 0:00:11]} 12. Qxf3 {[%emt 0:00:20]} a5 {[%emt 0:00:46]} 13. a3 {[%emt 0:03:32]} Rc8 {[%emt 0:01:14]} 14. Rfe1 {[%emt 0:01:31]} c5 {[%emt 0:00:22]} 15. d5 {[%emt 0:00:54]} c4 {[%emt 0:00:17]} 16. Ba2 {[%emt 0:02:06]} Na4 {[%emt 0:01:22]} 17. Bxc4 {[%emt 0:02:24]} Nc5 {[%emt 0:06:32]} 18. b4 {[%emt 0:01:27]} Na6 {[%emt 0:00:34]} 19. Bb5 {[%emt 0:01:11]} Rf8 {[%emt 0:00:40]} 20. Bxa6 {[%emt 0:02:43]} bxa6 {[%emt 0:00:24]} 21. Nb3 {[%emt 0:00:50]} h6 {[%emt 0:01:26]} 22. Bxf6 {[%emt 0:00:25]} Bxf6 {[%emt 0:00:40]} 23. Nxa5 {[%emt 0:00:15]} Bg5 {[%emt 0:00:26]} 24. Nc6 {[%emt 0:03:02]} Qd7 {[%emt 0:00:36]} 25. Qd3 {[%emt 0:02:32]} Ra8 {[%emt 0:02:53]} 26. c4 {[%emt 0:01:01]} f5 {[%emt 0:00:49]} 27. c5 {[%emt 0:01:30]} Rf6 {[%emt 0:00:17]} 28. Rad1 {[%emt 0:02:08]} fxe4 {[%emt 0:00:21]} 29. Qxe4 {[%emt 0:01:32]} Raf8 {[%emt 0:00:24]} 30. h4 {[%emt 0:01:49]} 1-0

[Event "Aarhusmesterskabet 2020"]
[Site "Aarhus"]
[Date "2020.02.15"]
[Round "5.9"]
[White "Thybo, Thomas Sondergaard"]
[Black "Andersen, Claus Nis"]
[Result "1-0"]
[ECO "C42"]
[WhiteElo "2075"]
[BlackElo "1697"]
[Annotator "NA"]
[PlyCount "69"]
[EventDate "2020.02.14"]
[EventType "swiss"]
[EventCountry "DEN"]
[SourceTitle "playchess.com"]
[Source "ChessBase"]
[SourceQuality "1"]
[TimeControl "40/5400+30:1800+30"]

1. e4 {[%emt 0:00:00]} e5 {[%emt 0:00:12]} 2. Nf3 {[%emt 0:00:00]} Nf6 {[%emt 0:00:05]} 3. Nxe5 {[%emt 0:01:08]} d6 {[%emt 0:00:06]} 4. Nf3 {[%emt 0:00:12]} Nxe4 {[%emt 0:00:06]} 5. Nc3 {[%emt 0:00:15]} Nxc3 {[%emt 0:00:08]} 6. dxc3 {[%emt 0:00:06]} Be7 {[%emt 0:00:07]} 7. Be3 {[%emt 0:00:59]} Nc6 {[%emt 0:00:23]} 8. Bc4 {[%emt 0:00:26]} Be6 {[%emt 0:02:02]} 9. Bxe6 {[%emt 0:03:41]} fxe6 {[%emt 0:00:06]} 10. Qe2 {[%emt 0:05:48]} Qd7 {[%emt 0:07:47]} 11. Ng5 {[%emt 0:03:36]} Bf6 {[%emt 0:05:52]} 12. Qh5+ {[%emt 0:11:06]} g6 {[%emt 0:02:04]} 13. Qg4 {[%emt 0:00:07]} Bxg5 {[%emt 0:03:17]} 14. Qxg5 {[%emt 0:00:36]} Ne7 {[%emt 0:02:38]} 15. O-O-O {[%emt 0:09:11]} a6 {[%emt 0:04:07]} 16. h4 {[%emt 0:07:06]} O-O-O {[%emt 0:00:23]} 17. h5 {[%emt 0:00:28]} Rhg8 {[%emt 0:06:56]} 18. g3 {[%emt 0:06:14]} Nf5 {[%emt 0:01:22]} 19. Bf4 {[%emt 0:01:16]} h6 {[%emt 0:00:33]} 20. Qg4 {[%emt 0:00:06]} g5 {[%emt 0:00:07]} 21. Bd2 {[%emt 0:00:04]} e5 {[%emt 0:02:46]} 22. Kb1 {[%emt 0:00:53]} Rdf8 {[%emt 0:02:26]} 23. Bc1 {[%emt 0:02:31]} Ne7 {[%emt 0:03:10]} 24. Qe2 {[%emt 0:00:53]} Qf5 {[%emt 0:00:19]} 25. f4 {[%emt 0:00:16]} gxf4 {[%emt 0:04:09]} 26. gxf4 {[%emt 0:00:07]} e4 {[%emt 0:01:45]} 27. Rhe1 {[%emt 0:04:13]} d5 {[%emt 0:06:28]} 28. c4 {[%emt 0:00:05]} c6 {[%emt 0:00:13]} 29. cxd5 {[%emt 0:00:06]} Nxd5 {[%emt 0:01:16]} 30. Qxe4 {[%emt 0:01:28]} Nxf4 {[%emt 0:07:18]} 31. Qd4 {[%emt 0:11:28]} Nxh5 {[%emt 0:08:18]} 32. Re5 {[%emt 0:13:09]} Qf7 {[%emt 0:02:39]} 33. Qc5 {[%emt 0:00:36]} Ng7 {[%emt 0:09:22]} 34. Re7 {[%emt 0:01:17]} Qf6 {[%emt 0:02:09]} 35. Rdd7 {[%emt 0:01:15]} 1-0

[Event "Aarhusmesterskabet 2020"]
[Site "Aarhus"]
[Date "2020.02.15"]
[Round "5.10"]
[White "Knudsen, Philip Uhre"]
[Black "Oehlerich, Per"]
[Result "0-1"]
[ECO "B00"]
[WhiteElo "1779"]
[BlackElo "1935"]
[Annotator "NA"]
[PlyCount "28"]
[EventDate "2020.02.14"]
[EventType "swiss"]
[EventCountry "DEN"]
[SourceTitle "playchess.com"]
[Source "ChessBase"]
[SourceQuality "1"]
[TimeControl "40/5400+30:1800+30"]

1. e4 {[%emt 0:00:00]} b6 {[%emt 0:00:10]} 2. d4 {[%emt 0:00:46]} Bb7 {[%emt 0:00:22]} 3. Nf3 {[%emt 0:00:52]} Bxe4 {[%emt 0:01:25]} 4. Nc3 {[%emt 0:01:15]} Bb7 {[%emt 0:00:32]} 5. Be2 {[%emt 0:04:00]} e6 {[%emt 0:00:53]} 6. O-O {[%emt 0:00:22]} Nf6 {[%emt 0:00:52]} 7. Bf4 {[%emt 0:07:36]} Be7 {[%emt 0:01:54]} 8. Re1 {[%emt 0:07:36]} O-O {[%emt 0:01:49]} 9. Bd3 {[%emt 0:03:01]} d6 {[%emt 0:01:41]} 10. Nd2 {[%emt 0:14:50]} Nbd7 {[%emt 0:03:48]} 11. Nce4 {[%emt 0:03:32]} Re8 {[%emt 0:06:26]} 12. c3 {[%emt 0:02:58]} Nf8 {[%emt 0:03:23]} 13. Qc2 {[%emt 0:02:09]} Nd5 {[%emt 0:08:29]} 14. Be3 {[%emt 0:03:48]} f5 {[%emt 0:01:13]} 0-1